fUSD/lending_fUSD_20250607
["ID","MTS","AMOUNT","RATE_DAILY","PERIOD"]
[364910459,1749295758078,-263.49478263,0.00013368,2]
[364910464,1749295766001,-291.23478295,0.00013368,2]
[364910465,1749295769778,-191.47081547,0.00013368,2]
[364910468,1749295774046,-615.16697196,0.00013368,2]
[364910469,1749295778001,-195.49686837,0.00013368,2]
[364910470,1749295779480,-157.02904962,0.00013368,2]
[364910471,1749295781682,-198.86012318,0.00013368,2]
[364910475,1749295786674,-414.81201026,0.00013368,2]
[364910476,1749295788936,-167.45125612,0.00013368,2]
[364910477,1749295791119,-227.19403926,0.00013368,2]
[364910478,1749295793331,-298.17237951,0.00013368,2]
[364910479,1749295795439,-311.4,0.00013368,2]
[364910480,1749295798476,-153.02326821,0.00013368,2]
[364910481,1749295800075,-181.31501508,0.00013368,2]
[364910482,1749295802991,-218.39358902,0.00013368,2]
[364910483,1749295808010,-203.76515372,0.00013368,2]
[364910487,1749295810672,-360.39005499,0.00013368,2]
[364910488,1749295813383,-254.37976024,0.00013368,2]
[364910489,1749295817639,-119.814204,0.00013368,2]
[364910490,1749295817664,-112.68410846,0.00013444,2]
[364910491,1749295820428,-187.37,0.00013444,2]
[364910492,1749295822444,-151.0,0.00013444,2]
[364910493,1749295823656,-277.65553523,0.00013444,2]
[364910494,1749295825265,-407.92634861,0.00013444,2]
[364910495,1749295827763,-308.54290644,0.00013444,2]
[364910496,1749295829474,-247.79084954,0.00013444,2]
[364910498,1749295832195,-4116.0,0.00013443,2]
[364910499,1749295832206,-4107.03025172,0.00013444,2]
[364910500,1749295832216,-1200.0,0.00013451,2]
[364910501,1749295832228,-5800.0,0.00013452,2]
[364910502,1749295832238,-402.13,0.00013699,2]
[364910503,1749295832248,-250.0,0.00014705,2]
[364910504,1749295832259,-1680.0,0.00014797,2]
[364910505,1749295832269,-3822.11636016,0.000151,2]
[364910506,1749295832280,-492.67294595,0.000154,2]
[364910507,1749295832290,-2351.0,0.00016276,2]
[364910508,1749295832303,-151.0,0.00016603,2]
[364910509,1749295832313,-1000.0,0.00017398,2]
[364910510,1749295832323,-2923.0248761,0.00017444,2]
[364910511,1749295832350,-2232.46026897,0.00017444,2]
[364910512,1749295832362,-766.97485493,0.00017444,2]
[364910513,1749295832374,-616.09,0.0001761,2]
[364910514,1749295832384,-250.0,0.00017665,2]
[364910515,1749295832395,-250.0,0.00017832,2]
[364910516,1749295832405,-2730.97940846,0.00017904,2]
[364910525,1749295832718,-561.02059154,0.00017904,2]
[364910526,1749295832728,-606.51913949,0.00017941,2]
[364910528,1749295832740,-2624.90785144,0.00017941,2]
[364910530,1749295832752,-1425.935,0.00017941,2]
[364910533,1749295832763,-1385.83801823,0.00017941,2]
[364910544,1749295832860,-44036.37349868,0.00017941,2]
[364910546,1749295832870,-931.5618068,0.0001799,2]
[364910548,1749295832879,-550.0,0.00017999,2]
[364910550,1749295832889,-50617.35310678,0.00018,2]
[364910552,1749295832900,-55723.87151976,0.00018,2]
[364910554,1749295832909,-87.79545534,0.0001803,2]
[364911006,1749295838169,-354380.51797066,0.0001803,2]
[364911008,1749295838181,-9551.60364844,0.00018042,2]
[364911010,1749295838191,-500.0,0.00018055,2]
[364911013,1749295838202,-500.0,0.00018073,2]
[364911015,1749295838212,-500.0,0.00018073,2]
[364911016,1749295838222,-500.0,0.00018073,2]
[364911018,1749295838232,-166.68,0.00018213,2]
[364911020,1749295838242,-185.9,0.00018337,2]
[364911022,1749295838251,-23858.91,0.00018356,2]
[364911024,1749295838261,-1350.31,0.00018391,2]
[364911027,1749295838271,-238.0,0.00018438,2]
[364911029,1749295838281,-18491.62275665,0.00018444,2]
[364911030,1749295838290,-23882.42253612,0.00018508,2]
[364911033,1749295838311,-11735.31077248,0.00018508,2]
[364911035,1749295838321,-174.47170687,0.00018521,2]
[364911037,1749295838331,-853.14110142,0.00018522,2]
[364911039,1749295838343,-303.52886988,0.00018535,2]
[364911041,1749295838352,-500.0,0.00018535,2]
[364911043,1749295838362,-452.60733907,0.00018535,2]
[364911045,1749295838372,-351.6255825,0.00018535,2]
[364911047,1749295838383,-304.4994994,0.00018535,2]
[364911050,1749295838393,-170.357177,0.00018536,2]
[364911052,1749295838404,-183.92822,0.00018536,2]
[364911054,1749295838414,-183.92822,0.00018536,2]
[364911056,1749295838424,-151.0,0.00018536,2]
[364911058,1749295838434,-4252.64982425,0.00018536,2]
[364911061,1749295838458,-2212.14033473,0.00018536,2]
[364911063,1749295838471,-322.0748122,0.00018536,2]
[364911065,1749295838483,-1055.555874,0.00018536,2]
[364911068,1749295838495,-1109.25673994,0.00018536,2]
[364911070,1749295838506,-1048.32241488,0.00018536,2]
[364911072,1749295838516,-10000.0,0.00018536,2]
[364911074,1749295838526,-10000.0,0.00018536,2]
[364911076,1749295838536,-151.0,0.00018536,2]
[364911078,1749295838545,-290.056007,0.00018536,2]
[364911080,1749295838554,-151.0,0.00018536,2]
[364911082,1749295838564,-151.0,0.00018536,2]
[364911084,1749295838574,-11701.33465752,0.00018617,2]
[364911085,1749295838584,-500.0,0.00018621,2]
[364911087,1749295838593,-1000.0,0.00018621,2]
[364911089,1749295838602,-1000.0,0.00018621,2]
[364911091,1749295838612,-151.0,0.00018621,2]
[364911093,1749295838622,-196.712187,0.00018621,2]
[364911095,1749295838632,-196.712187,0.00018621,2]
[364911097,1749295838641,-151.0,0.00018621,2]
[364911099,1749295838651,-151.0,0.00018621,2]
[364911101,1749295838660,-182.74,0.00018621,2]
[364911103,1749295838670,-500.0,0.00018685,2]
[364911105,1749295838680,-50079.57350776,0.00018714,2]
[364911107,1749295838690,-20145.77413094,0.00018717,2]
[364911110,1749295838706,-167482.06276906,0.00018717,2]
[364911113,1749295838715,-1000.0,0.00018717,2]
[364911116,1749295838724,-151.0,0.00018717,2]
[364911119,1749295838734,-151.0,0.00018717,2]
[364911121,1749295838743,-196.712187,0.00018717,2]
[364911123,1749295838753,-196.712187,0.00018717,2]
[364911125,1749295838763,-151.0,0.00018717,2]
[364911127,1749295838773,-252.148778,0.00018717,2]
[364911129,1749295838782,-1221.810892,0.00018717,2]
[364911131,1749295838791,-1221.810892,0.00018717,2]
[364911133,1749295838800,-481.10052,0.00018717,2]
[364911135,1749295838809,-481.10052,0.00018717,2]
[364911137,1749295838819,-225.218056,0.00018717,2]
[364911139,1749295838827,-225.218056,0.00018717,2]
[364911141,1749295838837,-183.92822,0.00018717,2]
[364911142,1749295838846,-183.92822,0.00018717,2]
[364911145,1749295838856,-151.0,0.00018717,2]
[364911146,1749295838865,-10000.0,0.00018717,2]
[364911148,1749295838875,-10000.0,0.00018717,2]
[364911150,1749295838885,-10000.0,0.00018717,2]
[364911152,1749295838896,-151.0,0.00018717,2]
[364911154,1749295838906,-151.0,0.00018717,2]
[364911156,1749295838916,-151.0,0.00018717,2]
[364911158,1749295838925,-151.0,0.00018717,2]
[364911160,1749295838935,-151.0,0.00018717,2]
[364911162,1749295838944,-151.0,0.00018717,2]
[364911164,1749295838953,-922.08436156,0.00018721,2]
[364911166,1749295838963,-159.63510569,0.00018721,2]
[364911168,1749295838973,-9366.45586419,0.00018754,2]
[364911170,1749295838983,-500.0,0.00018773,2]
[364911172,1749295838994,-500.0,0.00018773,2]
[364911174,1749295839003,-700.0,0.000188,6]
[364911176,1749295839013,-350.0,0.00018802,2]
[364911178,1749295839022,-151.0,0.00018817,2]
[364911180,1749295839032,-151.0,0.00018817,2]
[364911182,1749295839042,-151.949847,0.00018817,2]
[364911184,1749295839051,-151.0,0.00018817,2]
[364911186,1749295839060,-151.0,0.00018817,2]
[364911188,1749295839070,-151.0,0.00018817,2]
[364911190,1749295839080,-151.0,0.00018817,2]
[364911192,1749295839090,-151.0,0.00018817,2]
[364911194,1749295839100,-151.0,0.00018817,2]
[364911196,1749295839109,-151.0,0.00018817,2]
[364911198,1749295839119,-151.0,0.00018817,2]
[364911200,1749295839129,-151.0,0.00018817,2]
[364911202,1749295839139,-151.0,0.00018817,2]
[364911204,1749295839149,-240.77297,0.00018817,2]
[364911206,1749295839158,-240.77297,0.00018817,2]
[364911208,1749295839168,-240.77297,0.00018817,2]
[364911210,1749295839178,-196.712187,0.00018817,2]
[364911211,1749295839188,-240.77297,0.00018817,2]
[364911213,1749295839197,-196.712187,0.00018817,2]
[364911216,1749295839208,-196.712187,0.00018817,2]
[364911217,1749295839217,-196.712187,0.00018817,2]
[364911219,1749295839226,-2026.87948,0.00018817,2]
[364911221,1749295839236,-2026.87948,0.00018817,2]
[364911223,1749295839245,-2026.87948,0.00018817,2]
[364911225,1749295839254,-2026.87948,0.00018817,2]
[364911227,1749295839263,-151.0,0.00018817,2]
[364911229,1749295839272,-151.0,0.00018817,2]
[364911231,1749295839282,-1221.810892,0.00018817,2]
[364911233,1749295839292,-1221.810892,0.00018817,2]
[364911235,1749295839306,-1221.810892,0.00018817,2]
[364911237,1749295839316,-481.10052,0.00018817,2]
[364911239,1749295839325,-1221.810892,0.00018817,2]
[364911241,1749295839335,-481.10052,0.00018817,2]
[364911243,1749295839346,-481.10052,0.00018817,2]
[364911244,1749295839357,-481.10052,0.00018817,2]
[364911245,1749295839366,-225.218056,0.00018817,2]
[364911246,1749295839375,-225.218056,0.00018817,2]
[364911247,1749295839385,-225.218056,0.00018817,2]
[364911248,1749295839394,-225.218056,0.00018817,2]
[364911249,1749295839404,-12930.7081158,0.00018817,2]
[364911250,1749295839413,-183.92822,0.00018817,2]
[364911251,1749295839423,-183.92822,0.00018817,2]
[364911252,1749295839434,-183.92822,0.00018817,2]
[364911253,1749295839443,-183.92822,0.00018817,2]
[364911254,1749295839453,-151.0,0.00018817,2]
[364911256,1749295839463,-151.0,0.00018817,2]
[364911257,1749295839472,-693.530733,0.00018817,2]
[364911259,1749295839482,-693.530733,0.00018817,2]
[364911261,1749295839492,-693.530733,0.00018817,2]
[364911263,1749295839502,-693.530733,0.00018817,2]
[364911265,1749295839511,-2277.03970315,0.00018817,2]
[364911377,1749295840542,-500.0,0.00018816,2]
[364911378,1749295840552,-77.24415272,0.00018817,2]
[364911379,1749295840563,-1217.6518777,0.00018817,2]
[364911380,1749295840574,-2259.772282,0.00018817,2]
[364911381,1749295840586,-755.99429343,0.00018817,2]
[364911436,1749295841119,-263.19194834,0.00018817,2]
[364911674,1749295843559,-500.0,0.00017999,2]
[364911676,1749295843570,-97.37306358,0.00017999,2]
[364911983,1749296621515,-498.7506238,0.00015341,2]
[364911984,1749296623099,-156.81968863,0.00015341,2]
[364911985,1749296627179,-159.29,0.00015341,2]
[364911986,1749296630336,-188.51534781,0.00015341,2]
[364911987,1749296632365,-303.78980197,0.00015341,2]
[364911988,1749296633888,-167.15,0.00015341,2]
[364911989,1749296635464,-41.24453779,0.00015341,2]
[364911991,1749296799251,-158.75546221,0.00013699,2]
[364911992,1749296802587,-152.89476386,0.00013699,2]
[364911996,1749296806082,-82.43977393,0.00013699,2]
[364912036,1749297032447,-1871.36,0.00017109,2]
[364912037,1749297032458,-250.0,0.00017154,2]
[364912038,1749297032468,-500.0,0.000172,2]
[364912039,1749297032478,-1000.0,0.00017219,2]
[364912040,1749297032490,-250.0,0.00017248,2]
[364912041,1749297032500,-187.37,0.00017259,2]
[364912042,1749297032510,-311.4,0.00017273,2]
[364912043,1749297032520,-1000.0,0.00017286,2]
[364912044,1749297032530,-1000.0,0.00017294,2]
[364912045,1749297032541,-1200.0,0.00017383,2]
[364912046,1749297032552,-150.0,0.00017525,2]
[364912047,1749297032561,-150.0,0.0001753,2]
[364912048,1749297032571,-300.0,0.00017536,2]
[364912049,1749297032581,-300.0,0.00017604,2]
[364912050,1749297032592,-1515.56,0.00017605,2]
[364912051,1749297032603,-150.0,0.00017619,7]
[364912052,1749297032614,-403.1295,0.00017619,2]
[364912053,1749297032635,-133.3205,0.00017619,2]
[364912054,1749297032645,-176.06,0.00017619,2]
[364912055,1749297032655,-277.47,0.00017619,2]
[364912056,1749297032665,-453.47,0.00017619,2]
[364912057,1749297032675,-200.0,0.00017619,2]
[364912058,1749297032685,-150.0,0.0001767,2]
[364912059,1749297032695,-2924.46,0.00017709,2]
[364912060,1749297032704,-166.68,0.00017737,2]
[364912061,1749297032714,-550.0,0.00017761,2]
[364912062,1749297032725,-153.88,0.00017761,2]
[364912063,1749297032734,-151.0,0.00017781,2]
[364912064,1749297032744,-7338.87067203,0.00017792,2]
[364912065,1749297032755,-500.0,0.00017808,2]
[364912066,1749297032765,-151.0,0.00017836,2]
[364912067,1749297032775,-151.0,0.00017891,2]
[364912068,1749297032785,-264.26,0.00017898,2]
[364912069,1749297032794,-150.0,0.00017906,2]
[364912070,1749297032804,-481.0,0.00017918,2]
[364912071,1749297032813,-151.0,0.00017946,2]
[364912072,1749297032823,-942.41676759,0.00017951,2]
[364912073,1749297032835,-3868.98206038,0.00017952,2]
[364912074,1749297032849,-20031.01793962,0.00017952,2]
[364912075,1749297032860,-500.52454768,0.00018,2]
[364912077,1749297032870,-151.0,0.00018001,2]
[364912079,1749297032879,-151.0,0.00018056,2]
[364912081,1749297032889,-151.0,0.00018111,2]
[364912083,1749297032900,-150.0,0.00018115,2]
[364912085,1749297032909,-151.0,0.00018166,2]
[364912087,1749297032919,-151.0,0.00018221,2]
[364912089,1749297032929,-151.0,0.00018276,2]
[364912091,1749297032939,-150.0,0.0001831,2]
[364912093,1749297032949,-151.0,0.00018331,2]
[364912095,1749297032963,-1000.0,0.00018376,2]
[364912097,1749297032973,-151.0,0.00018386,2]
[364912099,1749297032983,-269.33825679,0.00018419,2]
[364912101,1749297032992,-1000.0,0.00018423,2]
[364912103,1749297033002,-151.0,0.00018441,2]
[364912105,1749297033012,-155.573485,0.00018453,2]
[364912107,1749297033022,-150.0,0.00018494,2]
[364912109,1749297033032,-151.0,0.00018496,2]
[364912111,1749297033043,-150.0,0.000185,2]
[364912113,1749297033053,-150.0,0.00018503,2]
[364912115,1749297033062,-150.0,0.00018507,2]
[364912117,1749297033073,-151.0,0.00018536,2]
[364912119,1749297033083,-151.0,0.00018536,2]
[364912121,1749297033093,-364.623123,0.00018536,2]
[364912123,1749297033103,-364.623123,0.00018536,2]
[364912125,1749297033112,-1188.943233,0.00018536,2]
[364912127,1749297033122,-1188.943233,0.00018536,2]
[364912129,1749297033132,-426.267147,0.00018536,2]
[364912131,1749297033142,-426.267147,0.00018536,2]
[364912133,1749297033151,-171.882811,0.00018536,2]
[364912135,1749297033161,-171.882811,0.00018536,2]
[364912137,1749297033172,-961.409907,0.00018536,2]
[364912139,1749297033182,-961.409907,0.00018536,2]
[364912141,1749297033192,-161.304553,0.00018536,2]
[364912143,1749297033202,-161.304553,0.00018536,2]
[364912145,1749297033211,-162.693074,0.00018536,2]
[364912147,1749297033221,-895.060117,0.00018536,2]
[364912149,1749297033231,-162.693074,0.00018536,2]
[364912151,1749297033240,-227.35162,0.00018536,2]
[364912153,1749297033251,-227.35162,0.00018536,2]
[364912155,1749297033261,-151.0,0.00018536,2]
[364912157,1749297033272,-572.91785,0.00018536,2]
[364912159,1749297033283,-572.91785,0.00018536,2]
[364912161,1749297033293,-151.0,0.00018551,2]
[364912163,1749297033303,-150.0,0.00018602,2]
[364912165,1749297033313,-1000.0,0.00018606,2]
[364912166,1749297033323,-301.69346504,0.00018606,2]
[364912168,1749297033334,-281.46672403,0.00018616,2]
[364912170,1749297033344,-500.0,0.00018616,2]
[364912172,1749297033355,-499.28032,0.00018616,2]
[364912174,1749297033366,-500.0,0.00018616,2]
[364912176,1749297033376,-500.0,0.00018616,2]
[364912178,1749297033388,-500.0,0.00018616,2]
[364912180,1749297033399,-500.0,0.00018616,2]
[364912183,1749297033410,-500.0,0.00018616,2]
[364912185,1749297033421,-500.0,0.00018616,2]
[364912187,1749297033432,-500.0,0.00018616,2]
[364912189,1749297033442,-500.0,0.00018616,2]
[364912191,1749297033452,-500.0,0.00018616,2]
[364912193,1749297033463,-500.0,0.00018616,2]
[364912195,1749297033473,-500.0,0.00018616,2]
[364912196,1749297033484,-500.0,0.00018616,2]
[364912199,1749297033495,-500.0,0.00018616,2]
[364912201,1749297033506,-500.0,0.00018616,2]
[364912203,1749297033517,-500.0,0.00018616,2]
[364912205,1749297033528,-500.0,0.00018616,2]
[364912207,1749297033539,-500.0,0.00018616,2]
[364912209,1749297033551,-500.0,0.00018616,2]
[364912211,1749297033562,-500.0,0.00018616,2]
[364912213,1749297033572,-500.0,0.00018616,2]
[364912215,1749297033583,-500.0,0.00018616,2]
[364912216,1749297033594,-500.0,0.00018616,2]
[364912219,1749297033606,-618.89155867,0.00018616,2]
[364912220,1749297033618,-427.11263488,0.00018616,2]
[364912222,1749297033629,-500.0,0.00018616,2]
[364912224,1749297033640,-500.0,0.00018616,2]
[364912226,1749297033652,-500.0,0.00018616,2]
[364912228,1749297033662,-500.0,0.00018616,2]
[364912230,1749297033673,-500.0,0.00018616,2]
[364912232,1749297033684,-500.0,0.00018616,2]
[364912235,1749297033696,-500.0,0.00018616,2]
[364912236,1749297033707,-500.0,0.00018616,2]
[364912238,1749297033719,-500.0,0.00018616,2]
[364912240,1749297033730,-500.0,0.00018616,2]
[364912242,1749297033741,-472.84953894,0.00018616,2]
[364912245,1749297033751,-500.0,0.00018616,2]
[364912246,1749297033762,-500.0,0.00018616,2]
[364912249,1749297033774,-500.0,0.00018616,2]
[364912250,1749297033786,-500.0,0.00018616,2]
[364912253,1749297033797,-500.0,0.00018616,2]
[364912254,1749297033809,-500.0,0.00018616,2]
[364912256,1749297033820,-500.0,0.00018616,2]
[364912258,1749297033832,-500.0,0.00018616,2]
[364912260,1749297033844,-500.0,0.00018616,2]
[364912262,1749297033857,-500.0,0.00018616,2]
[364912264,1749297033868,-500.0,0.00018616,2]
[364912266,1749297033879,-500.0,0.00018616,2]
[364912268,1749297033892,-260.59311681,0.00018616,2]
[364912270,1749297033905,-500.0,0.00018616,2]
[364912272,1749297033916,-500.0,0.00018616,2]
[364912275,1749297033928,-500.0,0.00018616,2]
[364912276,1749297033938,-500.0,0.00018616,2]
[364912279,1749297033951,-500.0,0.00018616,2]
[364912281,1749297033964,-500.0,0.00018616,2]
[364912283,1749297033976,-500.0,0.00018616,2]
[364912284,1749297033986,-500.0,0.00018616,2]
[364912286,1749297033996,-500.0,0.00018616,2]
[364912288,1749297034007,-500.0,0.00018616,2]
[364912290,1749297034017,-500.0,0.00018616,2]
[364912292,1749297034028,-500.0,0.00018616,2]
[364912294,1749297034039,-500.0,0.00018616,2]
[364912297,1749297034050,-500.0,0.00018616,2]
[364912298,1749297034061,-500.0,0.00018616,2]
[364912300,1749297034072,-500.0,0.00018616,2]
[364912302,1749297034082,-500.0,0.00018616,2]
[364912304,1749297034093,-500.0,0.00018616,2]
[364912306,1749297034103,-500.0,0.00018616,2]
[364912308,1749297034113,-500.0,0.00018616,2]
[364912310,1749297034126,-500.0,0.00018616,2]
[364912312,1749297034137,-500.0,0.00018616,2]
[364912314,1749297034148,-500.0,0.00018616,2]
[364912316,1749297034159,-500.0,0.00018616,2]
[364912318,1749297034170,-500.0,0.00018616,2]
[364912320,1749297034182,-500.0,0.00018616,2]
[364912323,1749297034193,-500.0,0.00018616,2]
[364912324,1749297034204,-639.86817847,0.00018616,2]
[364912326,1749297034215,-500.0,0.00018616,2]
[364912330,1749297034238,-500.0,0.00018616,2]
[364912332,1749297034251,-500.0,0.00018616,2]
[364912334,1749297034262,-500.0,0.00018616,2]
[364912336,1749297034273,-500.0,0.00018616,2]
[364912338,1749297034283,-500.0,0.00018616,2]
[364912340,1749297034294,-500.0,0.00018616,2]
[364912342,1749297034305,-500.0,0.00018616,2]
[364912344,1749297034316,-500.0,0.00018616,2]
[364912346,1749297034327,-500.0,0.00018616,2]
[364912348,1749297034338,-500.0,0.00018616,2]
[364912349,1749297034349,-500.0,0.00018616,2]
[364912352,1749297034359,-500.0,0.00018616,2]
[364912354,1749297034370,-520.15179787,0.00018616,2]
[364912356,1749297034381,-500.0,0.00018616,2]
[364912358,1749297034392,-500.0,0.00018616,2]
[364912359,1749297034404,-500.0,0.00018616,2]
[364912362,1749297034416,-500.0,0.00018616,2]
[364912364,1749297034427,-500.0,0.00018616,2]
[364912366,1749297034439,-500.0,0.00018616,2]
[364912368,1749297034451,-500.0,0.00018616,2]
[364912370,1749297034463,-500.0,0.00018616,2]
[364912372,1749297034475,-500.0,0.00018616,2]
[364912374,1749297034486,-500.0,0.00018616,2]
[364912376,1749297034497,-500.0,0.00018616,2]
[364912378,1749297034508,-500.0,0.00018616,2]
[364912380,1749297034519,-41020.97206287,0.00018617,2]
[364912381,1749297034531,-150.0,0.00018618,2]
[364912383,1749297034542,-155.562117,0.00018621,2]
[364912385,1749297034553,-155.562117,0.00018621,2]
[364912387,1749297034564,-150.0,0.00018649,2]
[364912389,1749297034575,-150.0,0.0001865,2]
[364912391,1749297034586,-150.0,0.00018658,2]
[364912394,1749297034598,-150.0,0.0001866,2]
[364912396,1749297034609,-1000.0,0.00018666,2]
[364912398,1749297034620,-150.0,0.0001869,2]
[364912400,1749297034630,-150.0,0.00018698,2]
[364912401,1749297034641,-1000.0,0.00018701,2]
[364912404,1749297034652,-2473.1857,0.00018708,2]
[364912406,1749297034663,-17057.10189774,0.00018708,2]
[364912411,1749297034724,-733.1889753,0.00018708,2]
[364912414,1749297034736,-1100.28419899,0.00018708,2]
[364912416,1749297034748,-153.52466795,0.00018708,2]
[364912418,1749297034759,-1000.0,0.00018715,2]
[364912420,1749297034770,-151.0,0.00018717,2]
[364912422,1749297034781,-151.0,0.00018717,2]
[364912424,1749297034792,-364.623123,0.00018717,2]
[364912426,1749297034802,-364.623123,0.00018717,2]
[364912427,1749297034812,-155.562117,0.00018717,2]
[364912430,1749297034823,-155.562117,0.00018717,2]
[364912432,1749297034833,-1188.943233,0.00018717,2]
[364912433,1749297034844,-1188.943233,0.00018717,2]
[364912436,1749297034855,-426.267147,0.00018717,2]
[364912438,1749297034866,-426.267147,0.00018717,2]
[364912439,1749297034876,-171.882811,0.00018717,2]
[364912441,1749297034886,-171.882811,0.00018717,2]
[364912444,1749297034896,-961.409907,0.00018717,2]
[364912446,1749297034907,-961.409907,0.00018717,2]
[364912448,1749297034916,-161.304553,0.00018717,2]
[364912450,1749297034927,-161.304553,0.00018717,2]
[364912452,1749297034937,-162.693074,0.00018717,2]
[364912454,1749297034947,-895.060117,0.00018717,2]
[364912456,1749297034960,-162.693074,0.00018717,2]
[364912458,1749297034971,-227.35162,0.00018717,2]
[364912460,1749297034981,-227.35162,0.00018717,2]
[364912462,1749297034991,-572.91785,0.00018717,2]
[364912464,1749297035000,-572.91785,0.00018717,2]
[364912465,1749297035010,-1533.98373174,0.00018721,2]
[364912467,1749297035020,-5000.0,0.00018721,2]
[364912469,1749297035030,-150.0,0.00018729,2]
[364912471,1749297035040,-150.0,0.00018735,2]
[364912474,1749297035050,-1000.0,0.00018736,2]
[364912476,1749297035060,-150.0,0.00018738,2]
[364912478,1749297035070,-1100.28419898,0.00018748,2]
[364912479,1749297035080,-150.0,0.00018759,2]
[364912480,1749297035091,-1000.0,0.0001876,2]
[364912481,1749297035101,-150.0,0.00018775,2]
[364912482,1749297035112,-150.0,0.00018775,2]
[364912483,1749297035127,-150.0,0.00018775,2]
[364912484,1749297035137,-1100.28419898,0.00018788,2]
[364912485,1749297035147,-150.0,0.00018788,2]
[364912486,1749297035157,-1000.0,0.00018795,2]
[364912487,1749297035167,-900.0,0.000188,6]
[364912488,1749297035177,-150.0,0.00018802,2]
[364912489,1749297035187,-150.0,0.00018802,2]
[364912491,1749297035197,-29027.98830318,0.00018808,2]
[364912795,1749297038379,-217.55110289,0.00018464,2]
[364912797,1749297038390,-150.0,0.00018543,2]
[364912799,1749297038400,-150.0,0.0001867,2]
[364912801,1749297038411,-1830.00315246,0.00018808,2]
[364913027,1749297041205,-874.88101183,0.00018808,2]
[364913449,1749297045504,-150.0,0.00018728,2]
[364913450,1749297045515,-150.0,0.0001875,2]
[364913451,1749297045525,-1442.95713646,0.00018808,2]
[364913465,1749297045775,-300.0,0.00018807,2]
[364913467,1749297045786,-2507.94058497,0.00018808,2]
[364913469,1749297045796,-1984.73721903,0.00018808,2]
[364913674,1749297273281,27333.27,0.00017711,120]
[364913675,1749297273309,90467.26046378,0.00017711,120]
[364913676,1749297273334,3882199.46953622,0.00017711,120]
[364913677,1749297361947,-155.05,0.00014255,2]
[364913678,1749297361971,-71.85710038,0.0001568,2]
[364913679,1749297366065,-169.28061633,0.0001568,2]
[364913680,1749297367745,-8.86228329,0.0001568,2]
[364913682,1749297664393,-162.371147,0.00017519,2]
[364913683,1749297664417,-162.43,0.00017619,2]
[364913684,1749297664441,-150.0,0.00017619,7]
[364913685,1749297664464,-159.29,0.00017619,2]
[364913686,1749297664487,-250.0,0.00017619,2]
[364913687,1749297664511,-250.0,0.00017722,2]
[364913688,1749297664536,-1200.0,0.00017787,2]
[364913689,1749297664560,-300.0,0.00017787,2]
[364913690,1749297664585,-23900.0,0.00017788,2]
[364913691,1749297664610,-252.11,0.00017799,2]
[364913692,1749297664633,-259.48,0.00017853,2]
[364913693,1749297664656,-205.0,0.00017864,2]
[364913694,1749297664679,-183.0,0.00018,2]
[364913695,1749297664704,-150.0,0.00018073,2]
[364913696,1749297664728,-1000.0,0.00018314,2]
[364913697,1749297664752,-150.0,0.00018352,2]
[364913698,1749297664777,-155.573486,0.00018444,2]
[364913699,1749297664800,-183.0,0.000186,2]
[364913700,1749297664824,-150.0,0.0001863,2]
[364913701,1749297664848,-200.0,0.00018667,2]
[364913702,1749297664872,-850.0,0.00018699,2]
[364913703,1749297664897,-770.19893934,0.000187,2]
[364913704,1749297664921,-18339.57392914,0.000187,2]